bitfinex/quotes_ETHUSD_20240716
["timestamp","ask_amount","ask_price","bid_price","bid_amount"]
[1721114552212,19.62,3409.1,3408.6,2.93372]
[1721114553788,19.62,3409.1,3408.3,1.136813]
[1721114553993,2.288,3409.0,3408.3,3.0]
[1721114554204,2.288,3409.0,3408.1,5.93418]
[1721114555382,2.288,3409.0,3408.1,3.0]
[1721114555781,2.288,3409.0,3408.0,5.0]
[1721114556116,1.31445174,3408.9,3408.0,5.0]
[1721114557096,2.93368,3408.7,3408.0,5.0]
[1721114557534,2.4187,3408.6,3408.0,5.0]
[1721114559199,2.4187,3408.6,3408.0,7.93424]
[1721114559936,9.5734,3409.1,3408.4,2.93391]
[1721114560132,9.5734,3409.1,3408.5,0.293391]
[1721114560834,9.5734,3409.1,3408.4,3.0]
[1721114560995,12.50674,3409.1,3408.2,3.0]
[1721114561196,12.50674,3409.1,3408.1,3.0]
[1721114561614,9.5734,3409.1,3408.1,3.0]
[1721114561817,9.5734,3409.1,3408.2,2.93409]
[1721114562013,9.5734,3409.1,3408.3,4.386834]
[1721114563021,9.5734,3409.1,3408.3,7.320824]
[1721114563745,9.5734,3409.1,3408.6,2.93375]
[1721114563908,7.32,3409.5,3408.7,0.0586672]
[1721114564105,7.32,3409.5,3408.3,1.386834]
[1721114564330,7.32,3409.5,3408.4,0.6737634]
[1721114564905,7.32,3409.5,3408.7,2.93361]
[1721114565551,7.32,3409.5,3408.8,3.0]
[1721114565711,7.32,3409.5,3409.0,2.93338]
[1721114565903,7.32,3409.5,3408.8,3.0]
[1721114566106,7.32,3409.5,3409.1,2.93332]
[1721114566307,7.32,3409.5,3408.9,0.3]
[1721114566551,7.32,3409.5,3408.8,2.9335]
[1721114566755,7.32,3409.5,3408.9,3.0]
[1721114567447,7.32,3409.5,3408.5,2.93376]
[1721114567741,7.32,3409.5,3408.6,3.0]
[1721114568959,7.32,3409.5,3408.6,5.93372]
[1721114569119,7.32,3409.5,3408.8,2.93356]
[1721114570132,7.32,3409.5,3408.5,3.0]
[1721114570447,7.32,3409.5,3408.5,5.93383]
[1721114570656,7.32,3409.5,3408.5,3.0]
[1721114570808,2.4236,3409.4,3408.0,7.93426]
[1721114571153,5.3569,3409.2,3408.0,8.727666]
[1721114571356,2.4096,3409.0,3408.0,7.93424]
[1721114571519,2.4096,3409.0,3408.0,5.0]
[1721114572321,2.4096,3409.0,3408.0,7.93425]
[1721114573347,2.4115,3408.5,3408.0,5.0]
[1721114573537,0.534529,3408.4,3408.0,5.0]
[1721114574316,8.35706,3408.1,3408.0,5.0]
[1721114574530,8.96031022,3408.1,3408.0,5.0]
[1721114574761,9.51031022,3408.1,3408.0,5.0]
[1721114574961,8.90706,3408.1,3408.0,5.0]
[1721114575123,11.70099305,3408.1,3408.0,5.0]
[1721114575330,10.54785648,3408.1,3408.0,5.0]
[1721114575652,11.09785648,3408.1,3408.0,5.0]
[1721114575850,12.00273181,3408.1,3408.0,5.0]
[1721114576247,11.3432145,3408.1,3408.0,5.0]
[1721114576420,12.00219445,3408.1,3408.0,5.0]
[1721114577054,17.36833551,3408.1,3408.0,5.0]
[1721114577365,18.02732384,3408.1,3408.0,5.0]
[1721114577868,12.00214384,3408.1,3408.0,5.0]
[1721114578064,3.0914339,3408.1,3408.0,5.0]
[1721114578269,2.4887,3408.1,3408.0,5.0]
[1721114579459,5.42288,3408.1,3408.0,5.0]
[1721114579769,8.35706,3408.1,3408.0,5.0]
[1721114580101,11.99806,3408.1,3408.0,5.0]
[1721114580231,11.40689768,3408.1,3408.0,5.0]
[1721114580869,15.40218504,3408.1,3408.0,5.0]
[1721114581237,14.49789768,3408.1,3408.0,5.0]
[1721114581452,15.40218504,3408.1,3408.0,5.0]
[1721114581870,7.92271768,3408.1,3408.0,5.0]
[1721114582236,3.09120625,3408.1,3408.0,5.0]
[1721114582438,2.4887,3408.1,3408.0,5.0]
[1721114583773,5.42288,3408.1,3408.0,5.0]
[1721114586074,6.02538292,3408.1,3408.0,5.0]
[1721114586247,12.05056292,3408.1,3408.0,5.0]
[1721114586455,14.62799465,3408.1,3408.0,5.0]
[1721114586691,27.81635465,3408.1,3408.0,2.5]
[1721114586901,32.0320519,3408.1,3408.0,1.88466443]
[1721114587205,33.1528719,3408.1,3408.0,1.88466443]
[1721114587697,34.65796549,3408.1,3408.0,1.88466443]
[1721114587931,3.091,3407.7,3405.8,0.1198786]
[1721114588070,6.98996,3407.2,3405.8,0.1198786]
[1721114588271,2.93545,3406.7,3405.8,0.1198786]
[1721114590679,2.93579,3406.3,3405.8,0.1198786]
[1721114591082,5.87216,3405.9,3405.8,0.1198786]
[1721114591308,6.459376,3405.9,3405.8,0.1198786]
[1721114591481,7.009376,3405.9,3405.8,0.1198786]
[1721114592806,4.073296,3405.9,3405.8,0.1198786]
[1721114592972,12.68121,3406.4,3405.8,0.1198786]
[1721114592973,2.93582,3406.2,3405.8,0.1198786]
[1721114593495,4.055,3406.2,3405.8,0.1198786]
[1721114593697,2.93592,3406.1,3405.8,0.1198786]
[1721114594068,2.93598,3406.1,3405.8,0.1198786]
[1721114594282,9.7455,3406.4,3405.8,0.1198786]
[1721114594481,2.93608,3405.9,3405.8,0.1198786]
[1721114596300,5.87216,3405.9,3405.8,0.1198786]
[1721114596471,2.93608,3405.9,3405.8,0.1198786]
[1721114597577,3.91029,3406.3,3405.8,0.1198786]
[1721114597893,0.55,3406.2,3405.8,0.1198786]
[1721114598097,1.178029,3406.1,3405.8,0.1198786]
[1721114598278,3.48603,3406.0,3405.8,0.1198786]
[1721114599482,7.32,3406.4,3405.8,0.1198786]
[1721114599815,12.3,3406.7,3405.8,0.1198786]
[1721114599816,19.62,3406.7,3405.8,0.1198786]
[1721114600017,7.32,3406.7,3405.8,3.60954846]
[1721114600175,7.32,3406.7,3405.8,0.67340846]
[1721114600383,7.32,3406.7,3405.8,0.1198786]
[1721114600613,2.93586,3406.2,3405.8,0.1198786]
[1721114601425,2.93565,3406.4,3405.8,0.1198786]
[1721114601573,0.55,3406.3,3405.8,0.1198786]
[1721114601779,3.48575,3406.3,3405.8,0.1198786]
[1721114602093,0.586445,3406.2,3405.8,0.1198786]
[1721114602306,2.93566,3406.4,3405.8,0.1198786]
[1721114602477,2.93555,3406.6,3405.8,0.1198786]
[1721114602813,0.55,3406.5,3405.8,0.1198786]
[1721114603175,2.93592,3406.1,3405.8,0.1198786]
[1721114604381,2.93579,3406.3,3405.8,0.1198786]
[1721114604579,0.348565,3406.3,3405.8,0.1198786]
[1721114605077,3.284305,3406.3,3405.8,0.1198786]
[1721114605923,0.348565,3406.3,3405.8,0.1198786]
[1721114606087,3.48583,3406.2,3405.8,0.1198786]
[1721114606286,6.42172,3406.2,3405.8,0.1198786]
[1721114606626,3.48583,3406.2,3405.8,0.1198786]
[1721114607118,2.93592,3406.1,3405.8,0.1198786]
[1721114607883,0.55,3406.2,3405.8,0.1198786]
[1721114608079,0.34858,3406.2,3405.8,0.1198786]
[1721114608392,2.93559,3406.5,3405.8,0.1198786]
[1721114608597,7.32,3406.7,3405.8,0.1198786]
[1721114608598,0.55,3406.4,3405.8,0.1198786]
[1721114608809,2.93565,3406.4,3405.8,0.1198786]
[1721114608984,2.93583,3406.2,3405.8,0.1198786]
[1721114609186,0.55,3406.3,3405.8,0.1198786]
[1721114609187,2.93608,3405.9,3405.8,0.1198786]
[1721114609385,3.779688,3405.9,3405.8,0.1198786]
[1721114609609,6.715768,3405.9,3405.8,0.1198786]
[1721114610436,3.779688,3405.9,3405.8,0.1198786]
[1721114611202,0.843608,3405.9,3405.8,0.1198786]
[1721114611595,7.32,3406.1,3405.8,0.1198786]
[1721114612001,2.93608,3405.9,3405.8,0.1198786]
[1721114613051,3.48608,3405.9,3405.8,0.1198786]
[1721114614344,6.42216,3405.9,3405.8,0.1198786]
[1721114616100,6.42216,3405.9,3405.8,0.09309864]
[1721114616101,29.52332,3405.9,3405.8,0.09309864]
[1721114616307,36.33242442,3405.9,3405.8,0.09309864]
[1721114616555,2.93718,3404.7,3403.6,2.4527]
[1721114616760,5.87436,3404.7,3403.6,2.4527]
[1721114617306,7.32,3404.8,3403.6,2.4527]
[1721114617620,0.55,3404.7,3403.6,2.4527]
[1721114617810,0.787,3404.6,3403.6,2.4527]
[1721114618303,3.72423,3404.6,3403.6,2.4527]
[1721114618508,3.72423,3404.6,3403.6,5.4527]
[1721114618509,2.93723,3404.6,3403.6,5.4527]
[1721114618710,0.55,3404.7,3403.6,5.4527]
[1721114619240,2.93727,3404.6,3403.6,5.4527]
[1721114619442,0.55,3404.5,3403.6,2.4527]
[1721114619740,2.9375,3404.3,3403.6,2.4527]
[1721114619943,2.9375,3404.3,3403.1,2.93849]
[1721114619944,0.34875,3404.2,3403.2,3.0]
[1721114620105,0.89875,3404.2,3403.1,2.3943]
[1721114620311,2.93801,3403.7,3402.6,2.3943]
[1721114620511,7.32,3403.8,3402.5,3.044]
[1721114620745,7.32,3403.8,3403.0,2.93855]
[1721114620905,7.32,3403.8,3402.9,3.044]
[1721114621260,7.32,3403.8,3402.3,0.1198786]
[1721114621261,7.32,3403.8,3403.7,8.91994]
[1721114621556,7.32,3404.4,3404.0,2.93769]
[1721114622265,7.32,3404.4,3403.7,10.113394]
[1721114622266,7.32,3404.8,3404.1,5.4383]
[1721114622419,7.32,3404.8,3404.5,2.93727]
[1721114622761,7.32,3404.8,3404.6,5.93719]
[1721114622907,7.32,3404.8,3404.7,1.191846]
[1721114624681,7.32,3404.8,3404.6,5.93718]
[1721114626275,7.32,3404.8,3404.6,3.0]
[1721114626576,7.32,3405.3,3404.5,3.0]
[1721114626783,7.32,3405.3,3404.1,2.3943]
[1721114626784,2.93674,3405.2,3404.1,2.3943]
[1721114626990,2.93674,3405.2,3403.0,1.5]
[1721114626991,2.93703,3404.8,3403.6,2.3477]
[1721114627137,2.93731,3404.5,3403.6,2.3477]
[1721114627469,2.93731,3404.5,3402.9,3.044]
[1721114627470,2.93731,3404.5,3403.0,5.28627]
[1721114627656,7.32,3404.4,3403.0,5.28627]
[1721114627856,1.025731,3404.3,3403.1,0.833027]
[1721114628102,1.025731,3404.3,3403.3,2.93824]
[1721114628232,1.025731,3404.3,3403.0,2.3477]
[1721114628233,2.93755,3404.2,3403.0,2.3477]
[1721114628634,2.93781,3403.9,3403.0,5.3477]
[1721114628832,2.93781,3403.9,3403.0,2.3477]
[1721114629075,2.9379,3403.8,3403.0,2.3477]
[1721114629251,2.93798,3403.7,3402.7,3.0]
[1721114630070,2.93798,3403.7,3402.6,2.9389]
[1721114630283,2.93798,3403.7,3402.5,2.3356]
[1721114630477,2.93808,3403.6,3402.5,2.3356]
[1721114630680,0.293808,3403.5,3402.5,2.3356]
[1721114630975,0.293808,3403.5,3402.5,5.27458]
[1721114631489,0.642546,3403.9,3402.7,2.93877]
[1721114631636,0.642546,3403.9,3402.6,3.0]
[1721114631637,0.642546,3403.9,3402.8,2.93874]
[1721114632050,0.642546,3403.9,3402.8,5.87741]
[1721114632378,7.32,3404.0,3402.6,3.0]
[1721114632552,7.32,3404.0,3403.2,2.93838]
[1721114632759,7.32,3404.0,3403.3,2.3469]
[1721114632980,7.32,3404.0,3403.6,2.93799]
[1721114633187,7.32,3404.4,3403.8,2.93789]
[1721114633342,19.62,3404.7,3403.9,2.93773]
[1721114633543,19.62,3404.7,3404.0,2.93769]
[1721114634991,19.62,3404.7,3403.5,3.0]
[1721114635145,22.55711,3404.7,3403.5,3.0]
[1721114635646,2.93721,3404.6,3403.5,2.93813]
[1721114635884,2.255721,3404.5,3403.6,3.0]
[1721114636288,2.255721,3404.5,3403.4,3.0]
[1721114636641,5.193021,3404.5,3403.4,3.0]
[1721114636883,2.93739,3404.4,3403.4,3.0]
[1721114637047,2.93749,3404.3,3403.3,2.3469]
[1721114637252,2.93758,3404.2,3403.2,3.0]
[1721114637549,0.55,3404.1,3403.0,5.93857]
[1721114637781,0.926927,3404.1,3403.0,5.93857]
[1721114638087,0.926927,3404.1,3403.1,2.93841]
[1721114638294,2.93789,3403.8,3403.0,3.0]
[1721114638475,0.926927,3404.1,3402.9,5.42379]
[1721114638803,0.926927,3404.1,3403.1,2.93848]
[1721114638950,1.1184497,3404.0,3403.2,3.0]
[1721114639549,1.1184497,3404.0,3402.9,2.4852]
[1721114639550,2.93791,3403.8,3402.9,2.4852]
[1721114640154,1.1184497,3404.0,3403.0,2.93854]
[1721114640356,1.1184497,3404.0,3403.1,3.0]
[1721114640560,7.32,3404.2,3403.1,5.93849]
[1721114641652,7.32,3404.2,3403.1,3.0]
[1721114641983,2.93772,3404.0,3403.1,3.0]
[1721114642188,0.55,3404.1,3402.9,8.42385]
[1721114642358,10.25762,3404.2,3403.0,1.136268]
[1721114642359,7.32,3404.2,3403.0,1.136268]
[1721114642695,0.55,3404.1,3403.0,4.136268]
[1721114642849,2.93809,3403.6,3402.5,2.939]
[1721114643253,2.93824,3403.4,3402.4,2.2912]
[1721114645078,10.25807,3403.6,3402.4,2.2912]
[1721114645278,0.55,3403.5,3402.5,2.93901]
[1721114645591,7.32,3403.6,3402.6,6.77388886]
[1721114646109,7.32,3403.6,3402.7,2.93883]
[1721114646267,7.32,3403.6,3402.8,3.0]
[1721114646470,7.32,3403.6,3402.6,3.0]
[1721114646861,2.93817,3403.5,3402.6,3.0]
[1721114647077,1.319616,3403.4,3402.5,3.0]
[1721114647576,7.32,3403.6,3402.5,3.0]
[1721114647811,7.32,3403.6,3402.4,2.2912]
[1721114647812,7.32,3403.6,3402.7,2.93883]
[1721114647968,7.32,3403.6,3402.8,2.93874]
[1721114648471,7.32,3403.6,3402.5,2.939]
[1721114648472,7.32,3403.6,3402.6,2.93889]
[1721114648699,7.32,3403.6,3402.4,5.2912]
[1721114648700,7.32,3403.6,3402.7,3.0]
[1721114648903,7.32,3403.6,3402.8,2.93874]
[1721114649111,7.32,3403.6,3402.7,0.82912]
[1721114649309,7.32,3403.6,3402.7,3.0]
[1721114649773,3.091,3403.2,3402.3,0.1198786]
[1721114649968,2.93996,3401.5,3400.7,0.30653432]
[1721114650226,2.94005,3401.3,3400.7,0.30653432]
[1721114650513,0.588001,3401.2,3400.7,0.30653432]
[1721114651514,3.528151,3401.2,3400.7,0.30653432]
[1721114651869,2.94042,3400.9,3400.7,0.30653432]
[1721114652076,3.528151,3401.2,3398.9,0.1198786]
[1721114652077,2.4332,3400.8,3398.9,0.1198786]
[1721114652309,2.9404,3400.9,3399.5,2.94159]
[1721114652511,1.6348151,3401.1,3399.6,2.2824]
[1721114652512,1.0848151,3401.1,3399.6,2.2824]
[1721114652727,7.32,3401.3,3400.2,2.94098]
[1721114653022,7.32,3401.8,3400.8,2.94047]
[1721114653312,7.32,3401.8,3400.9,2.94037]
[1721114653524,12.3,3402.1,3401.0,3.0]
[1721114653729,12.3,3402.1,3401.2,2.94005]
[1721114653881,12.3,3402.1,3401.3,0.294005]
[1721114654078,12.3,3402.1,3400.9,3.0]
[1721114654340,7.32,3402.2,3400.8,2.3731]
[1721114654478,2.9397,3401.8,3400.7,3.0]
[1721114654678,7.32,3402.2,3400.6,0.053443]
[1721114654897,2.94014,3401.2,3400.6,0.053443]
[1721114655178,0.294014,3401.1,3400.6,0.053443]
[1721114657704,7.32,3401.7,3400.6,0.053443]
[1721114658013,0.55,3401.6,3400.6,0.053443]
[1721114658247,2.93991,3401.5,3400.6,0.053443]
[1721114658800,7.32,3401.7,3400.6,0.053443]
[1721114659121,7.32,3401.7,3400.9,2.94031]
[1721114659295,9.282,3401.7,3400.6,0.053443]
[1721114660242,2.94034,3401.0,3400.6,0.053443]
[1721114660404,2.94046,3400.9,3400.6,0.053443]
[1721114660601,2.94056,3400.8,3400.6,0.053443]
[1721114660784,0.643102,3400.7,3400.6,0.053443]
[1721114661128,2.9412,3400.0,3398.9,0.1198786]
[1721114661421,2.94066,3400.6,3399.1,2.94189]
[1721114661422,10.26099,3400.3,3399.1,2.94189]
[1721114661626,10.26099,3400.3,3398.9,3.0619686]
[1721114661627,7.32,3400.3,3398.9,3.0619686]
[1721114661782,7.32,3400.3,3399.2,2.94186]
[1721114662001,7.32,3400.3,3399.3,0.521346]
[1721114662208,7.32,3400.3,3399.3,2.94174]
[1721114662947,7.32,3400.3,3399.3,2.9417]
[1721114663257,7.32,3400.3,3399.4,2.94168]
[1721114663641,7.32,3400.3,3399.7,2.94142]
[1721114663805,0.643102,3400.7,3399.7,2.94142]
[1721114664005,4.0860562,3400.6,3399.4,5.88331]
[1721114664207,1.1453562,3400.6,3399.6,2.94151]
[1721114664651,1.1453562,3400.6,3399.4,2.94163]
[1721114664811,3.49074,3400.5,3399.3,2.9417]
[1721114664999,3.49074,3400.5,3399.0,5.21363]
[1721114665000,3.46874982,3400.4,3399.4,3.0]
[1721114665212,3.46874982,3400.4,3399.2,3.0]
[1721114665653,0.52791982,3400.4,3399.2,3.0]
[1721114665817,0.52791982,3400.4,3399.4,2.94168]
[1721114667351,0.52791982,3400.4,3399.3,2.94177]
[1721114667508,0.52791982,3400.4,3399.4,3.0]
[1721114667509,0.4614016,3400.3,3399.4,3.0]
[1721114668530,0.4614016,3400.3,3399.0,2.2716]
[1721114669116,3.4023216,3400.3,3399.2,2.9418]
[1721114669344,1.1453562,3400.6,3399.3,5.94177]
[1721114669582,4.0860162,3400.6,3399.4,5.94169]
[1721114669712,4.0860162,3400.6,3399.4,2.94169]
[1721114669914,4.08139162,3400.5,3399.4,2.94169]
[1721114671452,2.94084,3400.4,3399.2,2.94185]
[1721114672355,2.94084,3400.4,3399.3,2.94175]
[1721114672651,1.14060162,3400.5,3399.5,2.94158]
[1721114672828,1.14060162,3400.5,3399.3,2.9417]
[1721114673151,0.40813216,3400.4,3399.3,2.9417]
[1721114673353,0.40813216,3400.4,3399.1,3.0]
[1721114673518,1.14060162,3400.5,3399.6,2.9415]
[1721114673954,1.14060162,3400.5,3399.4,2.94167]
[1721114674736,1.14060162,3400.5,3399.6,2.94145]
[1721114676317,1.14060162,3400.5,3399.5,2.94155]
[1721114677181,1.14060162,3400.5,3399.2,2.94186]
[1721114677383,0.40812616,3400.4,3399.4,2.94163]
[1721114678744,0.40812616,3400.4,3399.5,2.9416]
[1721114679238,0.40812616,3400.4,3399.3,2.94171]
[1721114679438,0.40812616,3400.4,3399.2,2.94186]
[1721114680277,3.34901616,3400.4,3399.3,2.94177]
[1721114680484,0.96991678,3400.3,3399.3,2.94177]
[1721114681090,2.94119,3400.0,3398.9,3.1198786]
[1721114681433,2.94119,3400.0,3399.0,3.0]
[1721114681634,2.94127,3399.9,3398.9,0.1198786]
[1721114681837,2.3264,3399.7,3398.9,0.1198786]
[1721114684099,3.235517,3399.8,3398.9,0.1198786]
[1721114684100,0.294127,3399.8,3398.9,3.0619886]
[1721114684383,2.94117,3400.0,3398.9,3.0619886]
[1721114686786,2.94109,3400.1,3399.0,2.94204]
[1721114687462,2.4565,3400.2,3399.1,2.94194]
[1721114687666,8.28991678,3400.3,3399.3,2.94171]
[1721114687852,7.32,3400.3,3399.4,3.530025]
[1721114688754,7.32,3400.3,3399.5,2.9416]
[1721114688956,7.32,3400.3,3399.6,2.9415]
[1721114689790,7.32,3400.8,3399.5,2.4784]
[1721114689989,2.94089,3400.4,3399.1,3.0]
[1721114690152,2.94089,3400.4,3399.0,2.94204]
[1721114690347,2.94089,3400.4,3399.1,3.0]
[1721114690800,2.94089,3400.4,3399.0,2.94204]
[1721114691003,0.588155,3400.3,3399.2,2.94186]
[1721114691653,3.529065,3400.3,3399.2,2.94186]
[1721114691856,2.94135,3399.8,3398.9,0.1198786]
[1721114692191,2.4839,3400.2,3399.1,2.94193]
[1721114692553,0.588155,3400.3,3399.3,2.94177]
[1721114692757,3.2159,3400.7,3399.5,2.9416]
[1721114692997,3.2159,3400.7,3398.9,7.1808786]
[1721114692998,2.94067,3400.6,3398.9,7.1808786]
[1721114693195,3.2159,3400.7,3398.9,7.1808786]
[1721114693196,2.94112,3400.1,3398.9,6.0619886]
[1721114693385,2.94112,3400.1,3398.9,0.1198786]
[1721114693749,2.94135,3399.8,3398.9,0.1198786]
[1721114693956,0.832074,3399.7,3398.9,0.1198786]
[1721114694390,2.94153,3399.6,3398.9,0.1198786]
[1721114695291,2.9417,3399.4,3398.9,0.1198786]
[1721114697114,2.4519,3399.4,3398.9,0.1198786]
[1721114697313,2.94191,3399.2,3398.9,0.1198786]
[1721114697602,3.481361,3399.1,3398.9,0.1198786]
[1721114697807,2.94198,3399.1,3398.9,0.1198786]
[1721114698207,2.94204,3399.0,3398.9,0.1198786]
[1721114699851,2.94178,3399.3,3398.9,0.1198786]
[1721114700168,2.94202,3399.1,3398.9,0.1198786]
[1721114700323,0.60145551,3399.5,3398.9,0.1198786]
[1721114700324,3.54309551,3399.5,3398.9,0.1198786]
[1721114700521,2.9417,3399.4,3398.9,0.1198786]
[1721114700937,2.94178,3399.3,3398.9,0.1198786]
[1721114701120,0.294178,3399.2,3398.9,0.1198786]
[1721114701422,2.94204,3399.0,3398.9,0.1198786]
[1721114701609,0.294178,3399.2,3398.9,0.1198786]
[1721114701814,2.94179,3399.3,3398.9,0.1198786]
[1721114702343,5.85440551,3399.5,3398.9,0.1198786]
[1721114702546,2.91275551,3399.5,3398.9,0.1198786]
[1721114702760,0.60145551,3399.7,3398.9,0.1198786]
[1721114702912,0.90218327,3399.9,3398.9,0.1198786]
[1721114702913,0.60145551,3399.9,3398.9,3.0619986]
[1721114703244,2.2801,3400.0,3398.9,0.73177846]
[1721114703245,0.60145551,3400.0,3398.9,0.73177846]
[1721114703608,0.60145551,3400.0,3399.1,2.94194]
[1721114703922,0.60145551,3400.0,3398.9,0.73177846]
[1721114704322,0.60145551,3399.9,3398.9,0.1198786]
[1721114704522,2.94179,3399.3,3398.9,0.1198786]
[1721114705118,0.60145551,3399.8,3398.9,5.3558886]
[1721114705327,0.60145551,3400.1,3399.2,2.94186]
[1721114705554,0.60145551,3400.3,3399.2,2.94186]
[1721114705721,0.60145551,3400.3,3399.2,5.88372]
[1721114705722,1.46027149,3400.3,3399.2,5.88372]
[1721114706314,0.60145551,3400.1,3399.3,2.94177]
[1721114706706,1.76099925,3400.3,3399.3,2.94177]
[1721114706707,0.85881598,3400.3,3399.3,2.94177]
[1721114706913,2.94076,3400.5,3399.3,2.94177]
[1721114706914,0.60289518,3400.2,3399.3,2.94177]
[1721114707111,0.60289518,3400.1,3399.2,2.94184]
[1721114707349,0.60289518,3399.7,3398.9,0.1198786]
[1721114707556,3.54425518,3399.8,3398.9,0.1198786]
[1721114707736,0.60289518,3399.7,3398.9,0.1198786]
[1721114708048,0.60289518,3399.8,3398.9,0.1198786]
[1721114708254,0.60289518,3399.9,3399.2,2.94179]
[1721114708413,0.60289518,3400.1,3399.2,3.00061928]
[1721114708613,0.60289518,3400.0,3399.2,2.94179]
[1721114708915,0.60289518,3400.2,3399.7,2.94141]
[1721114709160,1.20579037,3400.6,3399.7,2.94141]
[1721114709161,0.60289518,3400.5,3399.7,2.94141]
[1721114709518,0.60289518,3400.5,3399.6,2.94143]
[1721114709519,0.60289518,3400.6,3399.8,2.94134]
[1721114709720,0.60289518,3400.6,3400.2,2.94099]
[1721114710035,0.60289518,3401.0,3400.2,3.235089]
[1721114710225,0.60289518,3401.0,3400.4,2.94082]
[1721114710431,0.90434278,3401.2,3400.5,4.073]
[1721114710432,0.60289518,3401.2,3400.5,4.073]
[1721114710655,0.60289518,3401.5,3400.5,4.073]
[1721114710838,0.60289518,3401.6,3400.5,4.073]
[1721114711023,0.60289518,3401.6,3401.0,2.94029]
[1721114711228,0.60289518,3401.9,3400.6,0.65072]
[1721114711560,0.60289518,3401.9,3401.1,2.94021]
[1721114711919,0.60289518,3402.1,3401.3,2.94005]
[1721114712122,7.92289518,3402.3,3401.3,5.31665]
[1721114712313,0.8827238,3402.2,3401.3,5.31665]
[1721114713159,7.92233276,3402.3,3401.5,2.9398]
[1721114713361,7.32,3402.3,3401.5,2.9398]
[1721114714840,7.32,3402.3,3401.3,5.31665]
[1721114715164,0.90349914,3402.6,3401.0,4.073]
[1721114715165,12.3,3402.7,3402.3,2.93918]
[1721114715460,2.93825,3403.4,3402.3,4.178411]
[1721114715461,10.25825,3403.4,3402.3,4.178411]
[1721114715660,10.25825,3403.4,3402.3,2.93918]
[1721114715819,2.93839,3403.3,3402.1,2.4407]
[1721114716021,2.93841,3403.2,3402.1,2.4407]
[1721114716252,2.93841,3403.2,3402.1,5.38002]
[1721114716451,2.93841,3403.2,3401.8,3.0]
[1721114716452,2.93858,3403.0,3401.8,5.9396]
[1721114716658,2.93858,3403.0,3401.8,3.0]
[1721114716828,2.93858,3403.0,3401.7,3.0]
[1721114717450,1.025841,3403.1,3402.1,2.93931]
[1721114717664,7.32,3403.4,3402.3,2.93911]
[1721114718020,7.32,3403.4,3401.7,3.0]
[1721114718021,7.32,3403.4,3402.6,2.93889]
[1721114718219,7.32,3403.4,3402.5,4.073]
[1721114718524,7.32,3403.4,3402.5,7.01199]
[1721114718672,7.32,3403.4,3403.0,2.9385]
[1721114718896,7.32,3403.9,3403.1,0.29385]
[1721114719052,7.32,3403.9,3403.1,3.23232]
[1721114719390,7.32,3403.9,3403.3,2.93831]
[1721114719736,7.32,3403.9,3403.1,3.2323]
[1721114720142,7.32,3403.9,3403.1,0.29385]
[1721114720330,7.32,3403.9,3403.4,2.93823]
[1721114720560,7.32,3403.9,3403.5,4.073]
[1721114720763,19.62,3404.5,3403.5,7.01114]
[1721114720958,7.32,3404.9,3403.5,4.073]
[1721114721167,7.32,3404.9,3403.9,2.93778]
[1721114721865,7.32,3404.9,3403.7,2.93797]
[1721114722068,7.32,3404.9,3403.2,0.730542]
[1721114722069,2.93753,3404.3,3402.8,2.93867]
[1721114722297,2.93753,3404.3,3402.9,3.0]
[1721114722434,2.93764,3404.1,3402.7,6.4953]
[1721114722636,0.293764,3404.0,3402.8,3.0]
[1721114722835,0.293764,3404.0,3402.8,2.93873]
[1721114723495,10.25738,3404.4,3403.1,2.93849]
[1721114723680,7.32,3404.4,3403.2,2.9384]
[1721114723846,7.32,3404.4,3403.4,2.93816]
[1721114724050,7.32,3404.4,3402.8,3.091]
[1721114724253,7.32,3404.4,3403.7,12.39538]
[1721114724462,7.32,3404.9,3403.7,7.759138]
[1721114724800,7.32,3404.9,3403.9,2.9378]
[1721114725085,7.32,3404.9,3404.0,2.93771]
[1721114725449,7.32,3404.9,3404.1,2.93763]
[1721114726183,7.32,3404.9,3403.8,3.0]
[1721114726184,12.3,3405.3,3404.4,7.01037]
[1721114726384,7.32,3405.4,3403.8,3.0]
[1721114726385,7.32,3405.4,3403.8,7.073]
[1721114726558,10.25657,3405.4,3404.1,2.93758]
[1721114727270,2.93696,3404.9,3403.8,7.073]
[1721114727460,2.93696,3404.9,3403.8,3.0]
[1721114727647,3.230726,3404.8,3403.8,3.0]
[1721114727849,0.293696,3404.8,3403.9,2.93779]
[1721114728276,2.93672,3405.2,3403.9,2.93779]
[1721114728461,2.93672,3405.2,3403.8,3.0]
[1721114728462,7.32,3405.4,3404.4,4.073]
[1721114728789,7.32,3405.4,3404.6,2.9372]
[1721114728954,7.32,3405.4,3404.7,2.9371]
[1721114729154,7.32,3405.4,3404.8,2.93701]
[1721114729350,7.32,3405.4,3404.8,3.767441]
[1721114729891,7.32,3405.4,3404.7,2.93703]
[1721114730390,7.32,3405.4,3404.6,2.4301]
[1721114730391,7.32,3405.4,3404.8,2.93701]
[1721114730690,7.32,3405.4,3405.1,2.93675]
[1721114730890,12.3,3406.1,3404.9,4.073]
[1721114730891,7.32,3406.0,3405.4,2.93651]
[1721114731251,7.32,3406.0,3405.2,2.93666]
[1721114731558,7.32,3406.0,3405.3,2.93655]
[1721114731956,7.32,3406.0,3405.4,4.073]